Cogmind - Beta 10.1 @@@ ROGUE MODE // 2021.07.17 @ 12:02:16 // Winter2019/RPGLIKE Player: Farfid Result: Destroyed by D-53 Grenadier with Mini Grenade Launcher Performance ------------- Evolutions (0) 0 Regions Visited (4) 800 Robots Destroyed (18) 90 Value Destroyed (339) 339 Prototype IDs (0) 0 Alien Tech Used (0) 0 Bonus (0) 0 TOTAL SCORE: 1229 Bonus ------- None Cogmind --------- Core Integrity 0/800 Matter 300/300 Energy 99/100 System Corruption 0% Temperature Cool (0) Movement Rolling (80) Location -9/Mines Parts ------- > --- POWER (1) -------- (None) > --- PROPULSION (2) --- Wheel > --- UTILITY (1) ------ Disposable Heat Sink > --- WEAPON (2) ------- (None) > --- INVENTORY (2) ---- Rocket Launcher Peak State ------------ > --- POWER ------------ Light Nuclear Core > --- PROPULSION ------- Wheel Compact Wheel > --- UTILITY ---------- Improved Heat Sink > --- WEAPON ----------- Small Laser Light Assault Rifle > --- INVENTORY -------- (None) [Rating: 10] Favorites ----------- Power Light Nuclear Core Engine Ion Engine Power Core Light Nuclear Core Propulsion Wheel Wheel Wheel Utility Improved Heat Sink Device Improved Heat Sink Weapon Medium Laser Energy Gun Medium Laser Ballistic Gun Light Assault Rifle Build | -11 -10 -10 -10 -9 ------- Run | Scr Mat Min Exi Min Slots Evolved 2 | 2 . . . . Power . | . . . . . Propulsion 1 | 1 . . . . Utility . | . . . . . Weapon 1 | 1 . . . . Parts Attached 18 | 5 10 1 . 2 Power 2 | 1 1 . . . Engine 1 | 1 . . . . Core 1 | . 1 . . . Reactor . | . . . . . Propulsion 7 | 2 3 1 . 1 Treads . | . . . . . Leg . | . . . . . Wheel 7 | 2 3 1 . 1 Hover . | . . . . . Flight . | . . . . . Utility 2 | . 1 . . 1 Device 2 | . 1 . . 1 Storage . | . . . . . Processor . | . . . . . Hackware . | . . . . . Protection . | . . . . . Artifact . | . . . . . Weapon 7 | 2 5 . . . Energy Gun 3 | . 3 . . . Energy Cannon . | . . . . . Ballistic Gun 4 | 2 2 . . . Ballistic Cannon . | . . . . . Launcher . | . . . . . Special Weapon . | . . . . . Impact Weapon . | . . . . . Slashing Weapon . | . . . . . Piercing Weapon . | . . . . . Special Melee Weapon . | . . . . . Unidentified Prototypes . | . . . . . Parts Lost 4 | . . . . 4 Power 1 | . . . . 1 Propulsion 1 | . . . . 1 Utility . | . . . . . Weapon 2 | . . . . 2 Highest Loss Streak 4 | . . . . 4 Average Slot Usage (%) 98 | . 94 100 100 99 Engine 1 | . 5 . . . Core 14 | . 10 16 16 16 Wheel 33 | . 33 33 33 33 Device 15 | . 11 16 16 16 Energy Gun 28 | . 13 33 33 32 Ballistic Gun 3 | . 18 . . . Naked Turns . | . . . . . Heaviest Build 10 | 7 10 10 10 10 Greatest Support 31 | 31 31 25 25 25 Greatest Overweight (x) . | . . . . . Average Overweight (x) . | . . . . . Largest Inventory Capacity 2 | 1 1 2 2 2 Average Capacity 1 | 1 1 1 2 2 Most Carried 2 | . 1 1 1 2 Average Carried . | . . . 1 1 Final Capacity 2 | 1 1 2 2 2 Final Carried 1 | . . 1 1 1 Class Distribution -------------------- 100% | Mutant Dominant Class ---------------- Mutant | -10/Materials Mutant | -10/Mines Mutant | -10/Exiles Mutant | -9/Mines Resources | -11 -10 -10 -10 -9 ----------- Run | Scr Mat Min Exi Min Matter Collected 410 | 250 130 10 . 20 Remotely . | . . . . . Salvage Created 550 | . 136 299 . 115 Parts 35 | . 7 18 . 10 Haulers Intercepted . | . . . . . Recyclers Shooed . | . . . . . Parts Field Recycled . | . . . . . Retrieved Matter . | . . . . . Parts Self-Destructed . | . . . . . Prevented . | . . . . . Kills | -11 -10 -10 -10 -9 ------- Run | Scr Mat Min Exi Min Combat Hostiles Destroyed 13 | . 2 10 . 1 Guns 13 | . 2 10 . 1 Classes Destroyed 6 | . 1 3 . 2 Worker 1 | . . 1 . . Builder 1 | . . 1 . . Tunneler 2 | . . . . 2 Recycler 1 | . . . . 1 Swarmer 7 | . . 6 . 1 Grunt 6 | . 2 4 . . Best Kill Streak 4 | . 2 4 . 2 Combat Bots Only 3 | . 2 3 . 1 Max Kills in Single Turn 2 | . 1 2 . 1 Gunslinging 1 | . . 1 . . Exploded . | . . . . . Melee . | . . . . . Uniques/NPCs Destroyed . | . . . . . Combat | -11 -10 -10 -10 -9 -------- Run | Scr Mat Min Exi Min Damage Taken 1271 | . 217 364 . 690 Core 1057 | . 182 289 . 586 Absorbed by Shields . | . . . . . Redirected to Core 708 | . 114 239 . 355 Core Remaining (%) 100 | 100 . . . . Volleys Fired 54 | . 15 30 . 9 Largest 2 | . 2 2 . 2 Hottest 100 | . 40 100 . 100 Shots Fired 108 | . 30 60 . 18 Gun 108 | . 30 60 . 18 Cannon . | . . . . . Launcher . | . . . . . Special . | . . . . . Kinetic 30 | . 30 . . . Thermal 78 | . . 60 . 18 Explosive . | . . . . . Electromagnetic . | . . . . . Robot Hit Streak 13 | . 13 7 . 2 Robot Miss Streak 3 | . 2 3 . 3 Penetration Max . | . . . . . Secondary Targets 3 | . . 3 . . Max Gunslinging Chain 1 | . . 1 . . Shots Hit Robots 66 | . 23 38 . 5 Core Hits 31 | . 9 17 . 5 Critical Hits . | . . . . . Critical Kills . | . . . . . Critical Parts Destroyed . | . . . . . Melee Attacks . | . . . . . Impact . | . . . . . Slashing . | . . . . . Piercing . | . . . . . Sneak Attacks . | . . . . . Combat Hostiles . | . . . . . Follow-up Attacks . | . . . . . Damage Inflicted 731 | . 146 498 . 87 Guns 731 | . 146 498 . 87 Cannons . | . . . . . Explosions . | . . . . . Melee . | . . . . . Ramming . | . . . . . Kinetic 146 | . 146 . . . Thermal 585 | . . 498 . 87 Explosive . | . . . . . Electromagnetic . | . . . . . Impact . | . . . . . Slashing . | . . . . . Piercing . | . . . . . Highest Corruption . | . . . . . Average Corruption . | . . . . . Corruption Purged . | . . . . . Overload Shots . | . . . . . Overflow Damage . | . . . . . Projectiles . | . . . . . Explosions . | . . . . . Melee . | . . . . . Knockbacks . | . . . . . Impact . | . . . . . Kinetic . | . . . . . Secondary . | . . . . . Self-Inflicted Damage . | . . . . . Shots . | . . . . . Rammed . | . . . . . Targets Rammed . | . . . . . Kicked . | . . . . . Crushed . | . . . . . Highest Temperature . | . . . . . Average Temperature . | . . . . . Received Heat Transfer 267 | . 117 150 . . Siege Activations . | . . . . . Robots Corrupted . | . . . . . Combat Hostiles . | . . . . . Parts Fried . | . . . . . Impact Corruptions . | . . . . . Robots Melted . | . . . . . Combat Hostiles . | . . . . . Parts Melted 4 | . . 4 . . Heat Transferred 1739 | . . 1480 . 259 Parts Sabotaged . | . . . . . Parts Stolen . | . . . . . Parts Stripped . | . . . . . Power Chain Reactions . | . . . . . Missiles Intercepted . | . . . . . Alert | -11 -10 -10 -10 -9 ------- Run | Scr Mat Min Exi Min Peak Influence 307 | . 122 307 . 25 Initial 47 | . . 47 . . Average 87 | . 62 191 . 8 Maximum Alert Level 1 | . . 1 . . Low Security (%) 82 | 100 100 53 . 100 Level 1 17 | . . 46 . . Level 2 . | . . . . . Level 3 . | . . . . . Level 4 . | . . . . . Level 5 . | . . . . . High Security . | . . . . . Max Security . | . . . . . Squads Dispatched 1 | . 1 . . . Investigation . | . . . . . Extermination . | . . . . . Reinforcement 1 | . 1 . . . Assault . | . . . . . Garrison . | . . . . . Intercept . | . . . . . Construction Impeded . | . . . . . Haulers Reinforced . | . . . . . Stealth | -11 -10 -10 -10 -9 --------- Run | Scr Mat Min Exi Min Distress Signals 2 | . 1 1 . . Communications Jammed . | . . . . . Distress Signals . | . . . . . Times Spotted 23 | . 10 10 . 3 Peak Tracking Total 8 | . 8 3 . 2 Tactical Retreats . | . . . . . Traps | -11 -10 -10 -10 -9 ------- Run | Scr Mat Min Exi Min Traps Triggered 2 | . 2 . . . Indirectly . | . . . . . Trap Hack Attempts . | . . . . . Triggered . | . . . . . Disarmed . | . . . . . Reprogrammed . | . . . . . Reused 1 | . . . . 1 Traps Extracted . | . . . . . Installed 1 | . . . . 1 Triggered 2 | . . . . 2 Machines | -11 -10 -10 -10 -9 ---------- Run | Scr Mat Min Exi Min Machines Disabled . | . . . . . Max in Single Turn . | . . . . . Machines Sabotaged . | . . . . . Garrisons Compromised . | . . . . . Overloaded Fab Kills . | . . . . . Fab Network Shutdowns . | . . . . . Hacking | -11 -10 -10 -10 -9 --------- Run | Scr Mat Min Exi Min Machines Accessed 2 | . 1 . 1 . Terminals 1 | . 1 . . . Fabricators . | . . . . . Repair Stations . | . . . . . Recycling Units . | . . . . . Scanalyzers . | . . . . . Garrison Access . | . . . . . Total Hacks 4 | . 3 . 1 . Successful 3 | . 2 . 1 . Failed 1 | . 1 . . . Catastrophic 1 | . 1 . . . Database Lockouts . | . . . . . Manual 2 | . 2 . . . Terminals 3 | . 3 . . . Fabricators . | . . . . . Repair Stations . | . . . . . Recycling Units . | . . . . . Scanalyzers . | . . . . . Garrison Access . | . . . . . Terminal Hacks 3 | . 2 . 1 . Record 1 | . . . 1 . Branch Access Points 1 | . 1 . . . Locate Traps 1 | . 1 . . . Fabricator Hacks . | . . . . . Repair Station Hacks . | . . . . . Recycling Unit Hacks . | . . . . . Scanalyzer . | . . . . . Garrison Access Hacks . | . . . . . Unauthorized Hacks . | . . . . . Terminals . | . . . . . Fabricators . | . . . . . Repair Stations . | . . . . . Recycling Units . | . . . . . Scanalyzers . | . . . . . Garrison Access . | . . . . . Data Cores Recovered . | . . . . . Used . | . . . . . Hacking Detections 1 | . 1 . . . Full Trace Events . | . . . . . Feedback Events . | . . . . . Feedback Blocked . | . . . . . Robot Schematics Acquired . | . . . . . Robots Built . | . . . . . Matter . | . . . . . Time . | . . . . . Total Robot Build Rating . | . . . . . Part Schematics Acquired . | . . . . . Parts Built . | . . . . . Matter . | . . . . . Time . | . . . . . Total Part Build Rating . | . . . . . Parts Repaired . | . . . . . Time . | . . . . . Parts Recycled . | . . . . . Recycled Matter . | . . . . . Retrieved Matter . | . . . . . Retrieved Components . | . . . . . Parts Scanalyzed . | . . . . . Part Schematics Acquired . | . . . . . Parts Damaged . | . . . . . Bothacking | -11 -10 -10 -10 -9 ------------ Run | Scr Mat Min Exi Min Used RIF Installer . | . . . . . Robots Hacked . | . . . . . Non-combat . | . . . . . Combat . | . . . . . Robot Hacks Applied . | . . . . . Relay Couplers Released . | . . . . . Robots Rewired . | . . . . . Allies Hacked . | . . . . . Hacks Repelled . | . . . . . Allies | -11 -10 -10 -10 -9 -------- Run | Scr Mat Min Exi Min Total Allies . | . . . . . Largest Group . | . . . . . Highest-Rated Group . | . . . . . Highest-Rated Ally . | . . . . . Total Orders . | . . . . . Ally Attacks . | . . . . . Total Damage . | . . . . . Kills . | . . . . . Allies Corrupted . | . . . . . Allies Melted . | . . . . . Intel | -11 -10 -10 -10 -9 ------- Run | Scr Mat Min Exi Min Robot Analysis Total . | . . . . . Derelict Logs Recovered 3 | . . 2 . 1 Drone Launches . | . . . . . Drone Recoveries . | . . . . . Exploration | -11 -10 -10 -10 -9 ------------- Run | Scr Mat Min Exi Min Turns Passed 1373 | 33 271 467 111 491 Spaces Moved 1395 | 31 240 430 139 555 Core 5 | 5 . . . . Treads . | . . . . . Legs . | . . . . . Wheels 1390 | 26 240 430 139 555 Hover . | . . . . . Flight . | . . . . . Fastest Speed 50 | 50 80 80 80 80 Average Speed 81 | 84 86 80 80 80 Slowest Speed 100 | 100 90 80 80 80 Overloaded Moves . | . . . . . Propulsion Burnouts . | . . . . . Robots Hopped . | . . . . . Cave-ins Triggered . | . . . . . Exploration Rate (%) 53 | 3 46 81 52 83 Regions Visited 4 Branch Regions 3 Pre-discovered Areas 1 | . . . . 1 Known Exits Taken 1 | . 1 . . . Unknown Exits Taken 3 | 1 . 1 1 . Scrap Searched 3 | . . 2 . 1 Spaces Dug . | . . . . . Terrain Destroyed . | . . . . . Melee . | . . . . . Projectile . | . . . . . AOE . | . . . . . Terrain Rammed . | . . . . . Walls Destroyed . | . . . . . Machines Disabled . | . . . . . Actions | -11 -10 -10 -10 -9 --------- Run | Scr Mat Min Exi Min Total 1527 | 35 277 492 138 585 Wait 39 | . 7 20 . 12 Move 1391 | 30 239 429 138 555 Hop . | . . . . . Pick Up 2 | . . 1 . 1 Fast Attach 12 | 5 6 . . 1 Attach . | . . . . . Detach . | . . . . . Swap 6 | . 4 1 . 1 Drop 10 | . 6 1 . 3 Fire 54 | . 15 30 . 9 Melee . | . . . . . Ram . | . . . . . Kick . | . . . . . Crush . | . . . . . Escape Stasis . | . . . . . Rewire . | . . . . . Trap 1 | . . . . 1 Miscellaneous 12 | . . 10 . 2 Route ------- -11/Scrapyard -10/Materials (discovered 3 exits: [*Mat x2] / *Min) -10/Mines (discovered 2 exits: [*Mat] / *Exi) -10/Exiles -9/Mines History --------- Turn | Location | Event 1 | -11/Scrapyard | Upgraded with Propulsion slot (x1) 1 | -11/Scrapyard | Upgraded with Weapon slot (x1) 20 | -11/Scrapyard | Discovered new exit (range 15) 34 | -11/Scrapyard | Entered Materials 175 | -10/Materials | Discovered new exit (range 5) 235 | -10/Materials | Identified exit to Mines 283 | -10/Materials | Discovered new exit (range 7) 302 | -10/Materials | Build established: Mutant 305 | -10/Materials | Entered Mines 385 | -10/Mines | Learned Materials stockpile data 487 | -10/Mines | Reached level 2 509 | -10/Mines | Received a Rocket Launcher from a helpful Derelict 560 | -10/Mines | Learned 2 Materials zone layouts 674 | -10/Mines | Discovered new exit (range 5) 769 | -10/Mines | Deemed a non-threat by the Exiles lab entrance 769 | -10/Mines | Discovered new exit (range 5) 772 | -10/Mines | Entered Exiles 772 | -10/Exiles | Found Exiles lab abandoned 875 | -10/Exiles | Discovered new exit (range 10) 883 | -10/Exiles | Entered Mines 1059 | -9/Mines | Found a hidden stash of uninstalled traps 1228 | -9/Mines | Assembled infested the area 1233 | -9/Mines | Assisted by a Guerilla fighting off Assembled 1362 | -9/Mines | Core integrity fell below 50% 1371 | -9/Mines | Core integrity fell below 20% 1374 | -9/Mines | Destroyed by D-53 Grenadier with Mini Grenade Launcher Last Messages --------------- 01180_ S-10 Pest destroyed. 01185_ Used Protomatter to restore core integrity (+45, depleted) 01189_ K-01 Serf collects debris. 01228_ ALERT: Infestation in the mines, dispatching Demolisher response squad. 01231_ ET-H9H(h): "I'll hold them off! Go on ahead or try to find another way!" 01251_ K-01 Serf collects debris. 01335_ Dropped Blade Trap. 01336_ Installed Blade Trap. 01345_ T-07 Excavator destroyed. 01351_ R-06 Scavenger destroyed. 01355_ K-01 Serf collects debris. 01358_ K-01 Serf cleans the Matter Pump. 01358_ Upgraded: EX Resistance % (+5) 01363_ Med. Laser destroyed. 01366_ The unstable cave ceiling collapses. 01366_ K-01 Serf destroyed. 01370_ The unstable cave ceiling collapses. 01370_ Lgt. Nuclear Core destroyed. 01373_ U-05 Engineer lays Concrete. 01373_ Wheel destroyed. Map ----- +----------------------------------------------------+ | ??????????# #???????????????????# #??### #? | | ??????????# #???????????????????# #?## #?? | | ??????????# #???????????????????# #?# #?? | | ??????????# #???????????????????# #?# #?? | | ??????????# #???????????????????# #??# #?? | | ??????????# ####????????????????# #??# #??? | | ??????????# #????????????????# #?## ##??? | | ??????????##### #????????????????# ### ##???? | | ??????????????# #????????????????# ###????? | | #????????##???# ###??????????????# ##??????? | | #??????## ##??# #??????????????# ####???????? | | #?????## #??## #?#####????????## ##??????????? | | ##?#### #????# ### #????????## #???????????? | | ### ##????# ## #####?????# #???????????? | | ##????## # ##????# ###?????????? | | ####?????# = ##???## ##"########??? | | ##????????# """ #????# " #??? | | ####?????????# """ ##???# #??? | | ##???????????## """ #####= #??? | | #???????????## %|d #??? | | #?????####### # # *! d % #??? | | ####### # # % #??? | | % ## ## #??? | | ###### ## ## ## #??? | | #????## ####### ### ##?#" #??? | | #?????####?????###### @ #???" #??? | | #????????????????### ##??# #??? | | #???????????????## # #??# #??? | | ################# #??# #??? | | """#??###########??? | | ################## ######### """#???????????????? | | ?????????????????###???????# """#???????????????? | | ???????????????????????????# #???????????????? | | ???????????????????????????#######???????????????? | | ?????????????????????????????????????????????????? | | ?????????????????????????????????????????????????? | | ?????????????????????????????????????????????????? | | | | | | | | | | | | | | | | | | | | | | | | | | | +----------------------------------------------------+ Best States ------------- Heat Dissipation 69 Coolant Potential 50 Energy Generation 19 Energy Capacity 250 Matter Stores 300 Matter Capacity 300 Sight Range 16 Terrain Scan Density 10 Resistance: KI 10 Resistance: TH 10 Resistance: EX 5 Evasion (%) 44 Item Schematics ----------------- None Robot Schematics ------------------ None Fabricated ------------ Nothing Alien Tech Used ----------------- None Achievements -------------- None Challenges ------------ None RPGLIKE | -11 -10 -10 -10 -9 --------- Run | Scr Mat Min Exi Min Levels Raised 1 | . . 1 . . XP Earned 5790 | 3000 290 1700 200 600 XP Spent 4310 | 2960 . 500 . 850 Upgrades 21 | 17 . 1 . 3 Propulsion Slot 1 | 1 . . . . Weapon Slot 1 | 1 . . . . Core Integrity 4 | 4 . . . . Heat Dissipation 5 | 5 . . . . Energy Generation 1 | 1 . . . . Mass Support 1 | 1 . . . . Inventory Capacity 2 | 1 . 1 . . Ranged Accuracy 1 | 1 . . . . KI Resistance % 2 | 1 . . . 1 TH Resistance % 2 | 1 . . . 1 EX Resistance % 1 | . . . . 1 Protomatter Created 84 | . . 69 . 15 Integrity Restored 252 | . . 207 . 45 Core 252 | . . 207 . 45 Protomatter Decayed 14 | . . . . 14 Game ------ Seed UltimateGravitonBox Manual? 0 Play Time 00:10:07 Cumulative 605.5 hours Start 2021.07.17 @ 11:52:22 End 2021.07.17 @ 12:02:16 Sessions 1 Manual Loads 0 Difficulty Rogue Special Mode Winter2019/RPGLIKE Game No. 213 Rogue 213 Adventurer 0 Explorer 0 Win Type - Total 46 Types 26/3/7/4/3/0/2/0/1 Lore% 94 Gallery% 95 Achievement% 85 Wizard Run 0 Options --------- ASCII 0 Keyboard 0 Movement Mouse Keybinds 0 Fullscreen 2 Font 12/Smallcaps Map View 83x54 Tactical HUD 1 Map Filters NONE Filters NONE Steam X RUN: 5d5210f8-ca49-4577-b2fb-46fbc143cc48